bitfinex/quotes_ETHUSD_20250131
["timestamp","ask_amount","ask_price","bid_price","bid_amount"]
[1738347426177,0.197,3384.7,3384.5,2.95458]
[1738347426357,0.59490695,3385.1,3384.5,3.66720257]
[1738347426649,0.197,3384.8,3384.6,0.0593037]
[1738347428955,0.197,3384.8,3384.6,3.0138537]
[1738347429286,0.197,3384.8,3384.6,0.0593037]
[1738347429777,0.197,3384.8,3384.1,2.95497]
[1738347429978,0.1622,3384.7,3384.2,0.05934861]
[1738347430184,2.95488,3384.3,3383.7,4.19769]
[1738347430351,2.95488,3384.3,3383.7,4.91301]
[1738347430741,0.1622,3384.7,3383.9,2.9551]
[1738347430937,2.95463,3384.6,3384.1,2.95499]
[1738347431183,2.95465,3384.5,3383.9,2.9551]
[1738347431356,2.95463,3384.6,3383.9,2.9551]
[1738347431551,2.95488,3384.3,3383.7,4.19773]
[1738347431785,2.95494,3384.2,3383.7,2.95533]
[1738347432347,2.9548,3384.4,3383.7,2.95533]
[1738347432577,2.95482,3384.3,3383.7,2.95533]
[1738347433083,2.95482,3384.3,3383.8,2.95525]
[1738347433784,2.95482,3384.3,3383.8,2.95523]
[1738347434685,0.197,3384.2,3384.0,2.955]
[1738347435484,0.197,3384.2,3383.8,4.12193]
[1738347435681,0.197,3384.2,3383.9,2.95515]
[1738347436279,0.197,3384.2,3384.0,2.95504]
[1738347436481,0.197,3384.2,3384.1,2.95499]
[1738347436850,0.197,3384.2,3384.1,5.81562536]
[1738347437259,0.083,3384.8,3384.3,2.95476]
[1738347437482,0.197,3384.5,3384.2,2.9549]
[1738347437684,0.197,3384.5,3384.4,5.81536536]
[1738347437888,0.083,3385.0,3384.6,2.95449]
[1738347438087,0.197,3384.8,3384.6,2.95449]
[1738347438583,0.197,3384.8,3384.4,5.81528536]
[1738347438584,0.50521555,3384.8,3384.4,5.81528536]
[1738347438883,0.50521555,3384.8,3384.5,2.95456]
[1738347439076,0.50521555,3384.8,3384.6,2.95454]
[1738347440466,0.197,3384.9,3384.7,5.81510536]
[1738347440690,0.197,3384.9,3384.7,8.76957536]
[1738347440852,0.79190695,3385.1,3384.8,2.95433]
[1738347441486,0.79190695,3385.1,3384.7,2.86063536]
[1738347441705,0.79190695,3385.1,3384.9,0.05896837]
[1738347441869,0.79190695,3385.1,3384.8,0.05901593]
[1738347442189,0.79190695,3385.1,3384.9,0.05896837]
[1738347442393,0.79190695,3385.1,3384.7,2.86063536]
[1738347442587,0.79190695,3385.1,3385.0,0.05892081]
[1738347442763,0.79190695,3385.1,3384.7,2.86063536]
[1738347442965,0.79190695,3385.1,3384.8,0.05901593]
[1738347443295,0.79190695,3385.1,3385.0,2.86063536]
[1738347443649,0.79190695,3385.1,3385.0,2.91955617]
[1738347444999,3.74602695,3385.1,3385.0,2.91955617]
[1738347445204,0.79190695,3385.1,3385.0,2.91955617]
[1738347445912,0.197,3385.2,3385.0,7.02235617]
[1738347446200,0.197,3385.2,3385.1,3.65635562]
[1738347446408,0.197,3385.2,3385.0,7.02235617]
[1738347446568,0.197,3385.2,3385.1,0.05887325]
[1738347447291,0.75896086,3385.5,3385.1,0.05887325]
[1738347447474,0.75896086,3385.5,3385.4,2.86063536]
[1738347447797,0.95596086,3385.5,3385.4,2.91707925]
[1738347449204,3.3223978,3385.5,3385.4,0.05644389]
[1738347449372,3.4053978,3385.5,3385.4,0.05644389]
[1738347449574,3.4053978,3385.5,3384.8,3.98573536]
[1738347449776,2.95417,3385.1,3384.9,0.05663441]
[1738347450100,3.0372,3385.0,3384.9,0.05663441]
[1738347450598,3.0372,3385.0,3384.5,2.86063536]
[1738347450599,2.9545,3384.7,3384.5,2.86063536]
[1738347451664,2.9545,3384.7,3384.2,2.86063536]
[1738347451877,0.083,3384.5,3384.2,2.86063536]
[1738347452079,2.95474,3384.4,3384.2,2.86063536]
[1738347452487,2.95482,3384.3,3384.2,2.86063536]
[1738347452883,0.083,3384.5,3383.9,2.86063536]
[1738347453111,2.95508,3384.0,3383.4,1.231]
[1738347453282,2.95532,3383.8,3383.6,2.86063536]
[1738347453484,2.95534,3383.7,3383.6,2.86063536]
[1738347453684,0.197,3383.9,3383.3,5.81627536]
[1738347454018,0.197,3383.9,3383.6,2.86063536]
[1738347454627,3.15218,3383.9,3383.6,2.86063536]
[1738347454824,2.95526,3383.8,3383.6,2.86063536]
[1738347455362,2.95534,3383.7,3383.6,2.86063536]
[1738347455981,2.95534,3383.7,3382.4,9.40418941]
[1738347455982,2.95562,3383.4,3383.3,2.86063536]
[1738347456368,5.91092,3383.6,3383.0,2.86063536]
[1738347456572,5.91092,3383.6,3383.1,0.05225418]
[1738347456772,2.95562,3383.4,3383.0,2.86063536]
[1738347456970,2.95562,3383.4,3383.1,0.05225418]
[1738347457201,2.95562,3383.4,3383.0,2.86063536]
[1738347457407,2.95562,3383.4,3383.2,0.05225386]
[1738347457581,2.95569,3383.3,3383.1,0.05025616]
[1738347457794,2.95569,3383.3,3382.8,1.1379]
[1738347457977,2.95569,3383.3,3382.9,0.05039868]
[1738347458789,2.95593,3383.1,3382.9,0.05039868]
[1738347458988,3.03893,3383.1,3382.7,2.86063536]
[1738347459319,2.95611,3382.9,3382.8,0.04871046]
[1738347459516,2.97111,3382.9,3382.8,0.04871046]
[1738347459815,2.97111,3382.9,3382.1,4.05793536]
[1738347459816,2.95631,3382.6,3382.1,4.05793536]
[1738347460015,0.197,3382.5,3382.1,4.05793536]
[1738347460213,0.197,3382.5,3382.2,0.04966617]
[1738347460515,3.1534,3382.5,3382.2,0.04966617]
[1738347461916,2.97156,3382.3,3382.2,0.04966617]
[1738347462077,5.97156,3382.3,3382.2,0.04966617]
[1738347462274,2.95701,3381.8,3381.2,6.94945536]
[1738347462743,2.95701,3381.8,3381.3,0.04833977]
[1738347463079,2.95716,3381.7,3381.2,3.99193536]
[1738347463275,2.95716,3381.7,3381.4,0.04829211]
[1738347463510,3.04054,3381.9,3381.3,0.04833977]
[1738347463721,2.95703,3381.8,3381.5,0.04824445]
[1738347463925,2.95703,3381.8,3381.4,0.04829211]
[1738347464094,2.95703,3381.8,3381.6,0.04819679]
[1738347464285,2.95703,3381.8,3381.5,0.04824445]
[1738347464484,2.95703,3381.8,3381.7,0.04814914]
[1738347464999,2.95703,3381.8,3381.2,2.86063536]
[1738347465331,2.95713,3381.7,3381.3,0.04833977]
[1738347465689,2.95719,3381.6,3381.2,2.86063536]
[1738347465888,2.95719,3381.6,3381.4,0.04829211]
[1738347466137,2.95719,3381.6,3381.3,0.04833977]
[1738347466433,2.99415768,3381.6,3381.4,0.04876451]
[1738347466647,2.95719,3381.6,3381.4,0.04876451]
[1738347466851,2.95719,3381.6,3381.2,2.86063536]
[1738347466997,2.95719,3381.6,3381.5,0.04875782]
[1738347467191,2.95719,3381.6,3381.2,2.86063536]
[1738347467390,2.95701,3381.8,3381.3,2.95743]
[1738347467614,3.5436949,3382.2,3381.6,2.95717]
[1738347467828,3.197,3382.1,3381.6,2.95717]
[1738347468042,0.197,3382.1,3381.7,0.04693642]
[1738347468192,2.95691,3382.0,3381.7,0.04693642]
[1738347468393,2.95709,3381.7,3381.2,2.86063536]
[1738347468645,2.95698,3381.9,3381.3,0.04711129]
[1738347469001,2.95709,3381.7,3381.2,2.86063536]
[1738347469345,2.95695,3381.9,3381.3,0.04711444]
[1738347469694,2.95704,3381.8,3381.3,0.04711444]
[1738347470110,2.95704,3381.8,3381.2,5.81813536]
[1738347470324,2.95704,3381.8,3381.4,0.04706678]
[1738347470495,2.95704,3381.8,3381.3,0.04711444]
[1738347470695,3.04078,3381.6,3381.5,0.04701912]
[1738347470941,2.95726,3381.5,3381.4,0.04706678]
[1738347471251,2.95726,3381.5,3381.2,2.86063536]
[1738347471616,2.95726,3381.5,3381.3,0.04759002]
[1738347471949,2.95726,3381.5,3381.2,2.86063536]
[1738347472155,0.0836,3381.6,3381.2,2.86063536]
[1738347472310,2.95711,3381.7,3381.3,0.04759002]
[1738347472703,0.0075,3381.6,3380.9,2.86063536]
[1738347472907,3.0836,3381.9,3381.4,0.04588836]
[1738347472908,6.05586,3381.5,3381.4,0.04588836]
[1738347473152,0.26198492,3380.5,3380.3,5.81889536]
[1738347473333,0.26198492,3380.5,3380.3,2.86063536]
[1738347473516,0.26198492,3380.5,3380.4,0.04473884]
[1738347473919,0.26198492,3380.5,3380.4,3.00295884]
[1738347474466,0.26198492,3380.5,3380.4,5.17070326]
[1738347478547,0.0836,3381.1,3380.6,2.958]
[1738347478735,0.0836,3381.1,3380.7,0.04323854]
[1738347478936,0.197,3381.3,3380.7,2.95788]
[1738347479151,0.197,3381.3,3380.9,2.95771]
[1738347479461,0.197,3381.3,3381.0,0.04309551]
[1738347479754,0.197,3381.3,3380.9,2.95771]
[1738347480054,0.197,3381.3,3381.0,0.04309551]
[1738347480354,0.197,3381.3,3380.9,2.95771]
[1738347480715,0.197,3381.3,3381.0,0.04309551]
[1738347480915,0.197,3381.3,3380.9,2.95771]
[1738347481150,0.015,3382.0,3381.2,5.81810536]
[1738347481151,0.0836,3381.7,3381.2,5.81810536]
[1738347481336,3.15437,3381.4,3381.0,0.04309551]
[1738347481657,3.15437,3381.4,3380.7,6.4987]
[1738347481658,2.95769,3381.1,3380.7,5.35]
[1738347481819,2.95769,3381.1,3380.6,2.86063536]
[1738347482551,2.95776,3381.0,3380.6,2.86063536]
[1738347483150,2.95792,3380.8,3380.3,2.86063536]
[1738347483362,0.0836,3380.9,3380.1,4.12656]
[1738347483363,2.95802,3380.7,3380.1,4.12656]
[1738347484355,2.95802,3380.7,3380.1,2.95846]
[1738347484560,3.04143,3380.9,3380.3,2.86063536]
[1738347484859,3.04143,3380.9,3380.3,5.81887536]
[1738347485230,2.95793,3380.8,3380.3,2.86063536]
[1738347485834,2.95801,3380.7,3380.0,11.76784231]
[1738347486044,2.95801,3380.7,3380.1,2.95849]
[1738347486246,5.91605,3380.7,3380.0,11.76784231]
[1738347486560,0.0075,3381.1,3380.1,0.04235642]
[1738347486561,0.2881,3380.6,3380.1,0.04235642]
[1738347486760,0.0836,3380.9,3380.1,0.04235642]
[1738347486935,0.0836,3380.9,3380.3,2.86063536]
[1738347487134,0.197,3380.8,3380.5,2.95811]
[1738347487477,0.197,3380.8,3380.6,0.04215265]
[1738347487779,0.52084,3380.8,3380.3,5.81887536]
[1738347487929,0.197,3380.8,3380.4,3.00045803]
[1738347488129,0.197,3380.8,3380.6,2.95802]
[1738347488354,0.197,3380.8,3380.7,0.04210497]
[1738347488558,0.197,3380.8,3380.6,2.95802]
[1738347488923,0.197,3380.8,3380.7,0.04210497]
[1738347489260,0.197,3381.0,3380.6,4.04753536]
[1738347489446,0.197,3381.0,3380.9,2.95779]
[1738347489846,0.197,3381.0,3380.9,0.04200962]
[1738347490221,0.197,3381.0,3380.7,2.9579]
[1738347490448,0.197,3381.0,3380.9,0.04200962]
[1738347490652,0.197,3381.0,3380.9,2.95779]
[1738347490963,0.197,3381.0,3380.9,2.99979962]
[1738347491141,0.197,3381.2,3380.9,2.99979962]
[1738347491337,0.55,3381.1,3380.9,0.04200962]
[1738347491658,0.55,3381.1,3381.0,2.95768]
[1738347491867,0.55,3381.1,3381.0,2.99950637]
[1738347493984,3.59281,3381.1,3381.0,0.04182637]
[1738347494276,0.55,3380.9,3380.4,8.30819]
[1738347495058,0.55,3380.7,3380.4,5.35]
[1738347496478,0.55,3380.7,3380.3,2.95829]
[1738347496789,0.0852,3380.4,3380.0,3.00720695]
[1738347496954,0.0852,3381.0,3380.5,2.95808]
[1738347497155,0.0852,3381.0,3380.4,1.1154]
[1738347497373,0.197,3381.2,3380.4,1.1154]
[1738347497676,0.55,3381.1,3380.7,2.95789]
[1738347498845,0.55,3381.1,3380.8,2.95783]
[1738347499552,0.55,3381.1,3380.8,2.95781]
[1738347499885,0.55,3381.1,3380.9,2.95777]
[1738347500581,0.55,3381.1,3381.0,4.1734]
[1738347500747,0.55,3381.1,3381.0,1.2157]
[1738347500950,0.55,3381.1,3381.0,4.1734]
[1738347501556,0.55,3381.1,3381.0,0.03884237]
[1738347501773,0.55,3381.1,3381.0,0.03745515]
[1738347501774,3.59281,3381.1,3381.0,0.03745515]
[1738347502084,0.6502,3381.1,3380.5,8.76]
[1738347502270,3.50788,3380.8,3380.5,8.76]
[1738347502447,0.55,3380.8,3380.5,8.76]
[1738347502645,3.50773,3381.0,3380.5,8.76]
[1738347503242,3.50773,3381.0,3380.5,11.71813]
[1738347504055,0.55,3380.8,3380.5,8.76]
[1738347504452,0.55,3380.9,3380.5,8.76]
[1738347504652,0.55,3380.6,3380.5,8.76]
[1738347505673,3.50788,3380.8,3380.5,8.76]
[1738347506047,3.50788,3380.8,3380.2,2.95837]
[1738347506757,0.55,3380.8,3380.4,2.95821]
[1738347507367,0.55,3380.8,3380.2,2.95837]
[1738347507576,0.55,3380.8,3380.3,2.95829]
[1738347507889,0.0852,3381.1,3380.2,2.95832]
[1738347508045,0.12217584,3381.1,3380.2,2.95832]
[1738347508247,3.50793,3380.8,3380.1,4.13013]
[1738347508451,3.50812,3380.6,3380.0,3.00720695]
[1738347508648,0.55,3380.4,3380.0,3.00720695]
[1738347508852,0.55,3380.5,3380.1,2.95848]
[1738347509676,0.55,3380.5,3380.2,0.03797534]
[1738347510487,0.55,3380.5,3380.0,3.00717695]
[1738347510685,0.55,3380.5,3380.3,0.03792765]
[1738347511054,0.55,3380.5,3380.0,3.00717695]
[1738347511386,0.55,3380.5,3380.0,0.04863695]
[1738347511548,0.88324909,3380.5,3380.0,0.04863695]
[1738347511748,0.88324909,3380.5,3380.1,0.03666274]
[1738347511945,3.0429,3381.0,3380.1,0.03666274]
[1738347512151,2.95758,3381.2,3380.5,2.95809]
[1738347512350,0.197,3381.1,3380.6,0.03641798]
[1738347512680,0.55,3381.0,3380.6,0.03641798]
[1738347513758,0.55,3381.0,3380.6,0.03114283]
[1738347514093,0.6352,3380.8,3380.6,0.03114283]
[1738347514287,3.50796,3380.7,3380.6,0.03114283]
[1738347514463,2.95815,3380.5,3380.0,0.04863695]
[1738347514664,0.55,3380.4,3380.0,0.04863695]
[1738347514862,2.95797,3380.7,3380.1,2.95841]
[1738347515088,2.95783,3380.9,3380.1,2.95841]
[1738347515392,2.9578,3380.9,3380.4,2.9582]
[1738347516088,0.55,3380.8,3380.4,2.9582]
[1738347516298,0.55,3380.6,3380.4,2.9582]
[1738347516966,0.55,3380.6,3380.3,5.81892536]
[1738347517169,0.197,3380.7,3380.6,2.95805]
[1738347517609,0.747,3380.7,3380.6,2.95805]
[1738347517900,0.747,3380.7,3380.6,4.18325]
[1738347518506,0.55,3380.7,3380.6,7.04388536]
[1738347518675,0.0852,3381.6,3380.9,2.95772]
[1738347518676,0.197,3381.0,3380.9,2.95772]
[1738347519268,0.55,3381.0,3380.9,2.95772]
[1738347520382,0.197,3381.5,3381.1,2.95756]
[1738347520582,0.55,3381.4,3381.1,2.95756]
[1738347520984,0.55,3381.4,3380.9,2.86063536]
[1738347521181,0.55,3381.4,3381.0,0.03584026]
[1738347521507,0.55,3381.4,3381.1,2.9576]
[1738347521807,0.55,3381.4,3381.1,2.99339259]
[1738347522111,0.55,3381.2,3381.1,0.03579259]
[1738347522605,3.50754,3381.2,3381.1,0.03579259]
[1738347522813,3.50754,3381.2,3380.7,2.95795]
[1738347522968,3.50754,3381.2,3380.8,0.03590724]
[1738347523569,3.50754,3381.2,3380.6,6.94673536]
[1738347523865,3.50754,3381.2,3380.7,0.03595492]
[1738347524068,3.50754,3381.2,3380.7,2.99389492]
[1738347524308,0.0852,3381.3,3380.1,1.1253]
[1738347524309,0.55,3380.5,3380.1,1.1253]
[1738347524506,0.55,3380.5,3379.9,2.9586]
[1738347524681,0.55,3380.5,3379.7,3.98593536]
[1738347524886,0.565,3380.7,3380.1,4.08376]
[1738347525209,0.55,3380.7,3380.2,2.95835]
[1738347525906,0.55,3380.7,3380.1,1.1253]
[1738347526211,0.55,3380.4,3380.0,5.81919536]
[1738347526374,0.067,3380.8,3380.2,2.95835]
[1738347526569,3.260372,3380.8,3380.2,2.95838]
[1738347526771,0.55,3380.7,3380.2,2.95838]
[1738347527169,2.95754,3381.2,3380.6,2.95801]
[1738347527367,0.197,3381.1,3380.6,2.95801]
[1738347527610,0.747,3381.0,3380.6,2.95801]
[1738347531011,0.55,3380.2,3379.7,5.81939536]
[1738347531588,0.55,3380.2,3379.8,0.03509192]
[1738347531796,0.55,3380.0,3379.8,0.03509192]
[1738347532119,0.55,3380.0,3379.7,2.86063536]
[1738347532318,0.55,3380.0,3379.9,0.03504421]
[1738347532481,3.57524,3380.4,3379.8,2.99383192]
[1738347532685,3.57524,3380.4,3379.9,0.03504421]
[1738347533183,0.55,3380.1,3379.9,0.03504421]
[1738347533408,0.55,3380.3,3379.9,0.58383445]
[1738347533604,3.50835,3380.3,3380.0,0.03499651]
[1738347533794,0.55,3380.1,3380.0,0.03499651]
[1738347534119,0.55,3380.2,3380.0,0.03499651]
[1738347534480,3.50832,3380.3,3380.0,0.03499651]
[1738347534902,3.52357,3380.0,3379.9,0.06883096]
[1738347535536,3.5605597,3380.0,3379.9,0.06883096]
[1738347536082,3.5605597,3380.0,3379.1,2.86063536]
[1738347536083,0.55,3379.4,3379.1,2.86063536]
[1738347536415,0.55,3379.2,3379.1,2.86063536]
[1738347536620,0.55,3379.2,3378.8,4.05993536]
[1738347536822,0.55,3379.2,3378.8,2.86063536]
[1738347537027,3.50931,3379.2,3378.8,2.86063536]
[1738347537323,0.55,3379.0,3378.5,2.86063536]
[1738347537478,0.55,3379.0,3378.5,5.82046536]
[1738347537679,0.55,3378.8,3378.5,2.86063536]
[1738347537876,0.55,3378.8,3378.5,5.82047536]
[1738347538078,0.55,3379.0,3378.5,5.82047536]
[1738347538317,0.565,3379.1,3378.6,2.95979]
[1738347538816,0.197,3379.0,3378.9,2.95953]
[1738347539035,0.197,3379.2,3379.1,2.95935]
[1738347539193,0.197,3379.2,3379.1,5.81998536]
[1738347539399,0.197,3379.4,3379.3,2.95915]
[1738347539804,0.747,3379.4,3379.3,2.95915]
[1738347540194,0.747,3379.4,3379.3,2.90915]
[1738347540620,0.55,3379.4,3379.3,3.78206254]
[1738347540812,0.55,3379.4,3379.3,4.98486254]
[1738347541800,0.197,3379.6,3379.5,2.95895]
[1738347542091,3.02516,3380.5,3379.9,2.9586]
[1738347542423,0.212,3380.4,3379.9,2.9586]
[1738347542583,0.55,3380.3,3380.0,0.03320837]
[1738347542787,0.55,3380.3,3380.0,2.99176837]
[1738347543120,0.197,3380.2,3380.1,2.95846]
[1738347543321,0.067,3380.5,3380.1,5.81909536]
[1738347543522,0.067,3380.9,3380.4,2.95822]
[1738347543709,0.499474,3380.8,3380.4,2.95822]
[1738347544027,0.499474,3380.8,3380.5,0.03291628]
[1738347544388,0.55,3380.7,3380.6,0.03278974]
[1738347545122,0.55,3380.7,3380.3,2.95824]
[1738347545324,0.55,3380.7,3380.6,0.03278974]
[1738347545498,0.55,3380.7,3380.4,2.9582]
[1738347545700,0.55,3380.7,3380.6,0.03278974]
[1738347545899,0.55,3380.7,3380.5,0.03283742]
[1738347546093,0.55,3380.7,3380.3,2.95824]
[1738347546094,0.55,3380.7,3380.6,0.03278974]
[1738347546828,0.55,3380.7,3380.4,2.95816]
[1738347547182,0.55,3380.7,3380.5,1.23803742]
[1738347547821,0.55,3380.7,3380.5,0.03283742]
[1738347548233,0.55,3380.7,3380.6,2.99083974]
[1738347548404,0.082,3381.2,3380.8,2.95786]
[1738347548601,0.55,3381.0,3380.9,0.0326467]
[1738347548800,0.55,3381.0,3380.9,2.9904367]
[1738347549102,0.067,3381.5,3381.0,2.95767]
[1738347549428,0.197,3381.4,3380.9,2.9904067]
[1738347549731,0.197,3381.4,3381.0,0.0324382]
[1738347549895,0.55,3381.2,3381.0,0.0324382]
[1738347550096,0.55,3381.2,3380.9,2.95776]
[1738347550411,0.55,3381.3,3381.2,2.95752]
[1738347550729,0.197,3381.3,3381.2,2.98986286]
[1738347551328,0.197,3381.3,3381.2,0.03234286]
[1738347551731,0.197,3381.3,3381.1,2.95761]
[1738347551906,0.197,3381.3,3381.2,0.03234286]
[1738347552110,0.197,3381.3,3381.2,2.98986286]
[1738347552298,0.197,3381.3,3381.2,2.95752]
[1738347552494,0.197,3381.3,3381.2,2.98986286]
[1738347553229,0.197,3381.3,3381.2,0.03234286]
[1738347553436,3.15444,3381.3,3381.2,0.03234286]
[1738347553615,0.55,3381.2,3380.8,11.71785]
[1738347553932,0.55,3381.2,3380.9,2.95775]
[1738347554494,0.55,3381.2,3381.0,2.95769]
[1738347554831,0.55,3381.2,3381.1,4.17371]
[1738347554832,0.197,3381.2,3381.1,4.17371]
[1738347555027,0.55,3381.6,3381.1,1.2161]
[1738347555230,0.197,3381.5,3381.2,2.95747]
[1738347555732,0.55,3381.4,3381.3,2.95742]
[1738347556095,0.55,3381.4,3381.2,2.95747]
[1738347556501,0.55,3381.4,3381.3,2.95744]
[1738347557028,0.55,3381.4,3381.1,9.9761]
[1738347557581,0.55,3381.2,3381.1,8.76]
[1738347557714,0.5575,3381.4,3381.1,11.71761]
[1738347557915,0.0691,3381.3,3212.2,0.020684]
[1738347558225,0.0691,3381.3,3377.1,2.96603]
[1738347558226,0.2,3377.4,3377.1,2.96603]
[1738347558425,2.96017,3378.2,3377.1,2.86563536]
[1738347558426,0.2,3377.8,3377.1,2.86563536]
[1738347558601,0.2,3377.8,3377.4,2.86063536]
[1738347559314,0.55,3377.7,3377.2,0.59587539]
[1738347559532,0.55,3377.7,3377.1,2.86563536]
[1738347559533,0.55,3377.5,3377.1,0.005]
[1738347559749,0.55,3377.2,3377.1,0.005]
[1738347561860,0.2,3377.6,3377.3,2.96088]
[1738347562079,0.1,3374.2,3372.2,1.4991493]
[1738347562214,2.96389,3374.0,3373.8,0.01388458]
[1738347562527,0.2,3374.4,3373.8,0.31070031]
[1738347562851,0.2,3374.1,3373.8,0.31070031]
[1738347563011,0.2,3374.1,3373.1,11.72462]
[1738347563349,0.2,3374.4,3373.4,2.96436]
[1738347563552,0.2,3374.4,3373.5,2.96426]
[1738347563750,0.2,3374.4,3373.9,2.96389]
[1738347564052,0.55,3374.3,3373.5,8.76]
[1738347564222,0.55,3374.3,3373.7,2.96402]
[1738347564425,0.55,3374.3,3373.7,2.96407]
[1738347564824,0.55,3374.3,3373.8,2.964]
[1738347565015,0.55,3374.3,3373.8,2.96401]
[1738347565216,0.55,3374.3,3373.9,2.96392]
[1738347565412,0.55,3374.3,3374.0,0.296392]
[1738347566370,0.55,3374.3,3373.7,2.96406]
[1738347566871,0.55,3374.3,3373.6,3.84015]
[1738347566872,0.55,3374.3,3373.8,2.96399]
[1738347567174,0.55,3374.3,3373.9,2.9639]
[1738347567517,0.55,3374.0,3373.9,2.9639]
[1738347568427,0.55,3374.0,3373.7,2.9641]
[1738347568656,0.55,3374.0,3373.8,2.96399]
[1738347569171,0.55,3374.0,3373.9,2.96392]
[1738347569666,0.55,3374.0,3373.8,2.96399]
[1738347569864,0.55,3374.0,3373.9,2.96392]
[1738347570458,0.2,3374.3,3373.8,3.347989]
[1738347570640,0.2,3374.3,3374.2,2.96366]
[1738347572642,0.55,3374.2,3374.0,2.96378]
[1738347573342,0.55,3374.4,3373.8,0.383999]
[1738347573565,0.55,3374.4,3374.3,2.96357]
[1738347576772,0.55,3374.2,3373.6,3.44177247]
[1738347576979,0.55,3373.8,3373.4,8.76]
[1738347577268,0.03704826,3374.1,3373.2,4.64207247]
[1738347577269,0.55,3373.4,3373.2,6.40625247]
[1738347577773,0.015,3373.3,3372.8,3.44177247]
[1738347577934,0.55,3373.1,3372.9,2.9648]
[1738347578135,0.75,3373.0,3372.9,2.9648]
[1738347579163,0.55,3373.0,3372.9,2.9648]
[1738347579363,0.2,3373.0,3372.9,2.96479]
[1738347579566,0.2,3373.0,3372.7,2.96495]
[1738347579870,0.2,3373.0,3372.9,2.9648]
[1738347580249,0.2,3373.0,3372.4,6.40693247]
[1738347580250,0.2,3372.8,3372.4,6.40693247]
[1738347580435,0.2,3372.2,3372.1,0.005]
[1738347580640,0.78706679,3372.2,3372.1,0.005]
[1738347580840,0.75,3372.2,3372.1,0.005]
[1738347581361,0.75,3372.2,3372.1,6.41228247]
[1738347581735,0.75,3372.2,3372.1,7.0706735]
[1738347582186,0.75,3372.2,3372.1,0.005]
[1738347582539,0.215,3371.9,3371.8,0.1716278]
[1738347582794,1.877,3371.9,3371.8,0.1716278]
[1738347582936,4.862,3371.9,3371.8,0.1716278]
[1738347583457,0.75,3371.9,3371.8,3.1373978]
[1738347583654,0.765,3371.9,3371.8,0.1716278]
[1738347583881,2.0179,3371.9,3371.8,0.1716278]
[1738347584058,2.0029,3371.9,3371.8,0.1716278]
[1738347584255,0.2,3371.5,3371.1,2.96636]
[1738347584460,0.75,3371.2,3371.1,2.96636]
[1738347584659,0.75,3371.2,3371.1,0.93746825]
[1738347584994,0.75,3371.2,3370.4,4.20494]
[1738347584995,0.2,3370.8,3370.5,2.96683]
[1738347585146,0.2,3370.8,3370.6,2.96677]
[1738347585147,0.55,3370.7,3370.6,2.96677]
[1738347586542,0.75,3370.6,3370.5,2.96688]
[1738347587359,0.55,3370.6,3370.5,2.96688]
[1738347590090,0.2,3370.4,3370.1,2.96726]
[1738347590305,0.75,3370.1,3369.7,2.96759]
[1738347590459,0.75,3370.1,3370.0,2.96735]
[1738347590662,0.55,3370.0,3369.7,0.76879625]
[1738347590840,0.2,3370.1,3370.0,2.96735]
[1738347591181,0.75,3370.3,3370.2,2.96718]
[1738347591381,0.75,3370.3,3370.2,3.90481025]
[1738347591782,0.55,3370.3,3370.2,3.90481025]
[1738347592857,0.55,3370.3,3370.2,2.96718]
[1738347594165,0.55,3370.3,3370.0,2.96735]
[1738347594166,0.55,3370.2,3370.1,0.58087912]
[1738347594380,0.2,3369.8,3369.6,2.96768]
[1738347594582,0.55,3370.0,3369.4,2.96787]
[1738347594583,0.75,3369.5,3369.4,2.96787]
[1738347594880,0.75,3369.5,3369.4,3.56021638]
[1738347595194,0.75,3369.5,3369.4,4.50984202]
[1738347595866,0.55,3369.5,3369.4,4.50984202]
[1738347596322,0.55,3369.5,3369.4,0.59234638]
[1738347596525,0.55,3369.5,3369.4,3.56022638]
[1738347598123,0.75,3369.4,3369.2,2.96798]
[1738347598618,0.75,3369.4,3369.3,2.96797]
[1738347599189,0.2,3369.6,3369.5,2.96779]
[1738347599509,0.2,3369.9,3369.8,2.96753]
[1738347599806,0.2,3369.9,3369.6,2.96763]
[1738347599807,0.75,3369.6,3369.1,3.55596488]
[1738347600001,0.55,3369.3,3369.2,2.96806]
[1738347600523,0.55,3369.3,3368.4,0.4216278]
[1738347600524,0.75,3368.5,3368.4,0.4216278]
[1738347600817,0.99,3368.5,3368.4,0.4216278]
[1738347601017,5.22008,3368.5,3368.4,0.4216278]
[1738347601215,6.51876,3368.4,3368.2,0.01]
[1738347601377,11.27023247,3368.4,3368.2,0.01]
[1738347601582,11.59523247,3368.4,3368.2,0.01]
[1738347601784,11.49523247,3368.4,3368.2,0.01]
[1738347602316,12.10053577,3368.4,3368.2,0.01]
[1738347602518,12.38507311,3368.4,3368.2,0.01]
[1738347602744,12.38507311,3368.4,3366.4,2.97046]
[1738347602745,3.0,3368.0,3366.4,2.97046]
[1738347602927,0.4432,3367.2,3366.6,2.97028]
[1738347603130,0.2,3367.3,3367.2,2.96976]
[1738347603318,0.2,3367.3,3367.2,3.61141325]
[1738347603521,0.2,3367.5,3367.2,3.61141325]
[1738347603721,0.2,3367.5,3367.4,2.96965]
[1738347603918,0.2,3367.7,3367.6,2.96947]
[1738347604535,0.2,3367.7,3366.9,2.97006]
[1738347604536,0.55,3367.2,3366.9,2.97006]
[1738347604752,3.51982,3367.2,3366.5,2.97043]